bitfinex-derivatives/quotes_BTCF0:USTF0_20250320
["timestamp","ask_amount","ask_price","bid_price","bid_amount"]
[1742510428641,0.5681306,84123.0,84122.0,0.0593]
[1742510429441,0.5681306,84123.0,84122.0,0.0623]
[1742510429845,0.5681306,84123.0,84122.0,0.003]
[1742510430053,0.5681306,84123.0,84122.0,0.007]
[1742510430346,0.57967136,84123.0,84122.0,0.007]
[1742510431051,0.70217962,84123.0,84122.0,0.007]
[1742510431249,0.70217962,84123.0,84122.0,0.0641]
[1742510431547,0.1189376,84118.0,84117.0,4e-05]
[1742510431944,0.2346376,84118.0,84117.0,4e-05]
[1742510432740,0.2346376,84118.0,84117.0,0.005]
[1742510433648,0.2346376,84118.0,84117.0,0.01]
[1742510435848,0.6436376,84118.0,84117.0,0.01]
[1742510436046,0.6436376,84118.0,84117.0,0.125]
[1742510450672,0.6436376,84118.0,84117.0,0.13981332]
[1742510451580,0.5279376,84118.0,84117.0,0.13981332]
[1742510451881,0.5279376,84118.0,84117.0,0.125]
[1742510460584,0.65269501,84118.0,84117.0,0.125]
[1742510462082,0.65269501,84118.0,84117.0,0.13980062]
[1742510470900,0.24369501,84118.0,84117.0,0.13980062]
[1742510471899,0.24369501,84118.0,84117.0,0.125]
[1742510472093,0.30399501,84118.0,84117.0,0.13999696]
[1742510473293,0.1792376,84118.0,84117.0,0.13999696]
[1742510475597,0.2996376,84118.0,84117.0,0.13999696]
[1742510476195,0.2367376,84118.0,84117.0,0.13999696]
[1742510477496,0.1189376,84118.0,84117.0,0.15497797]
[1742510477897,0.1189376,84118.0,84117.0,0.13999696]
[1742510478704,0.1825376,84118.0,84117.0,0.13999696]
[1742510484213,0.30348776,84118.0,84117.0,0.13999696]
[1742510484715,0.66428776,84118.0,84117.0,0.13999696]
[1742510486114,0.60068776,84118.0,84117.0,0.25893596]
[1742510486313,0.60068776,84118.0,84117.0,0.13999696]
[1742510486813,0.23988776,84118.0,84117.0,0.13999696]
[1742510487016,0.60068776,84118.0,84117.0,0.13999696]
[1742510490211,0.4797376,84118.0,84117.0,0.13999696]
[1742510493911,0.4797376,84118.0,84117.0,0.25893596]
[1742510494415,0.4797376,84118.0,84117.0,0.13999696]
[1742510497117,0.4797376,84118.0,84117.0,0.15510906]
[1742510497311,0.5412376,84118.0,84117.0,0.15510906]
[1742510498925,0.4797376,84118.0,84117.0,0.15510906]
[1742510499126,0.4797376,84118.0,84117.0,0.15504624]
[1742510500325,0.4797376,84118.0,84117.0,0.27398524]
[1742510505922,0.4797376,84118.0,84117.0,0.25893596]
[1742510508633,0.4797376,84118.0,84117.0,0.25893596]
[1742510508820,0.4797376,84118.0,84117.0,0.13999696]
[1742510509021,0.5424376,84118.0,84117.0,0.13999696]
[1742510509223,0.5996376,84118.0,84117.0,0.13999696]
[1742510509634,0.5424376,84118.0,84117.0,0.13999696]
[1742510510531,0.5424376,84118.0,84117.0,0.25893596]
[1742510511733,0.30533475,84129.0,84128.0,0.1189235]
[1742510512029,0.30533475,84129.0,84128.0,0.03008008]
[1742510512233,0.30533475,84129.0,84128.0,0.21268008]
[1742510512531,0.36233475,84129.0,84128.0,0.19759696]
[1742510512922,0.36233475,84129.0,84128.0,0.20159696]
[1742510513322,0.36233475,84129.0,84128.0,0.32052046]
[1742510514222,0.36233475,84129.0,84128.0,0.33583831]
[1742510515132,0.36233475,84129.0,84128.0,0.32052046]
[1742510515325,0.36233475,84129.0,84128.0,0.33584095]
[1742510515522,0.36233475,84129.0,84128.0,0.21691745]
[1742510515726,0.1164623,84129.0,84128.0,0.32052046]
[1742510515925,0.1779623,84129.0,84128.0,0.32052046]
[1742510519032,0.35501783,84129.0,84128.0,0.32052046]
[1742510519534,0.35501783,84129.0,84128.0,0.20159696]
[1742510519837,0.35501783,84129.0,84128.0,0.01899696]
[1742510520438,0.1189405,84116.0,84115.0,4e-05]
[1742510520638,0.5947405,84116.0,84115.0,4e-05]
[1742510520839,0.1189489,84110.0,84109.0,0.11747828]
[1742510521337,0.1805489,84110.0,84109.0,0.11747828]
[1742510522033,0.1805489,84110.0,84109.0,0.12247828]
[1742510522235,0.1815489,84110.0,84109.0,0.12247828]
[1742510523335,0.1815489,84110.0,84109.0,0.12847828]
[1742510523540,0.2437489,84110.0,84109.0,0.12847828]
[1742510525247,0.25558684,84110.0,84109.0,0.12847828]
[1742510529841,0.25558684,84110.0,84109.0,0.01117828]
[1742510530041,0.25558684,84110.0,84097.0,0.86436]
[1742510530042,0.1189588,84103.0,84102.0,0.1219]
[1742510530242,0.1189673,84097.0,84096.0,0.00047564]
[1742510530946,0.2383673,84097.0,84096.0,0.00047564]
[1742510532148,0.2383673,84097.0,84096.0,0.00647564]
[1742510532539,0.25099722,84097.0,84096.0,0.00847564]
[1742510532736,0.25099722,84097.0,84096.0,0.0232235]
[1742510535959,0.1189787,84089.0,84078.0,0.00064]
[1742510536142,0.1189886,84082.0,84081.0,0.0622]
[1742510536450,0.11899,84081.0,84079.0,0.0592]
[1742510536642,0.35059,84081.0,84080.0,0.12187573]
[1742510536844,0.35059,84081.0,84080.0,0.12195573]
[1742510538768,0.35059,84081.0,84080.0,0.12395573]
[1742510553892,0.35059,84081.0,84080.0,0.13887387]
[1742510562890,0.5272414,84081.0,84080.0,0.13887387]
[1742510564385,0.5272414,84081.0,84080.0,0.15435644]
[1742510566188,0.5272414,84081.0,84080.0,0.15427644]
[1742510566789,0.23559,84081.0,84080.0,0.15426715]
[1742510566993,0.11899,84081.0,84080.0,0.15426715]
[1742510567302,0.11899,84081.0,84080.0,0.13934901]
[1742510567598,0.11899,84081.0,84080.0,0.15438934]
[1742510569895,0.17649,84081.0,84080.0,0.15438934]
[1742510570090,0.53729,84081.0,84080.0,0.15438934]
[1742510571198,0.53729,84081.0,84080.0,0.15451278]
[1742510572102,0.47979,84081.0,84080.0,0.15451278]
[1742510572792,0.47979,84081.0,84080.0,0.13891606]
[1742510573098,0.47979,84081.0,84080.0,0.27349579]
[1742510573303,0.47979,84081.0,84080.0,0.15450439]
[1742510573801,0.69204202,84081.0,84080.0,0.27349579]
[1742510574608,0.69204202,84081.0,84080.0,0.27342289]
[1742510574993,0.69204202,84081.0,84080.0,0.25790746]
[1742510575893,0.57305202,84081.0,84080.0,0.2731961]
[1742510576205,0.57305202,84081.0,84080.0,0.27317834]
[1742510576403,0.57305202,84081.0,84080.0,0.38817834]
[1742510576700,0.21225202,84081.0,84080.0,0.74897834]
[1742510578798,0.33124202,84081.0,84080.0,0.74897834]
[1742510578997,0.21225202,84081.0,84080.0,0.74897834]
[1742510580898,0.0594792,84104.0,84090.0,0.1189772]
[1742510581101,0.0594787,84104.0,84095.0,0.1189702]
[1742510581303,0.1784609,84093.0,84092.0,0.1189731]
[1742510581496,0.1784609,84093.0,84092.0,0.13425827]
[1742510581805,0.1784609,84093.0,84092.0,0.1492986]
[1742510582001,0.1189716,84094.0,84093.0,0.178458]
[1742510582202,0.39996699,84096.0,84095.0,0.1189702]
[1742510582400,0.28099709,84096.0,84095.0,0.13061712]
[1742510582795,0.00017828,84105.0,84099.0,0.0594822]
[1742510583006,0.28099709,84130.0,84102.0,0.3608]
[1742510583007,0.0594649,84125.0,84102.0,0.3608]
[1742510583211,0.1189333,84123.0,84122.0,0.1189292]
[1742510583504,0.0594649,84125.0,84124.0,0.1189292]
[1742510583702,0.0594649,84125.0,84124.0,0.008929]
[1742510583905,0.1783883,84128.0,84126.0,0.0594631]
[1742510584106,0.64179709,84130.0,84129.0,0.1189221]
[1742510584308,0.76071779,84130.0,84129.0,0.1189221]
[1742510584907,0.76071779,84130.0,84129.0,0.13396243]
[1742510585509,0.76071779,84130.0,84129.0,0.14536142]
[1742510586112,0.4797207,84130.0,84129.0,0.14536142]
[1742510586312,0.4847207,84130.0,84129.0,0.14536142]
[1742510587314,0.4807207,84130.0,84129.0,0.14536142]
[1742510587507,0.4807207,84130.0,84129.0,0.13032109]
[1742510588413,0.4807207,84130.0,84129.0,0.18642109]
[1742510589608,0.4807207,84130.0,84129.0,0.13032109]
[1742510589822,0.5370207,84130.0,84129.0,0.01139899]
[1742510590011,0.1189292,84124.0,84123.0,0.2338902]
[1742510591116,0.1189292,84124.0,84123.0,0.24874171]
[1742510591316,0.1189292,84124.0,84123.0,0.24974171]
[1742510591519,0.1189292,84124.0,84123.0,0.2927502]
[1742510591910,0.1780292,84124.0,84123.0,0.2927502]
[1742510592210,0.1780292,84124.0,84123.0,0.2947502]
[1742510592808,0.1780292,84124.0,84123.0,0.30643926]
[1742510593010,0.1780292,84124.0,84123.0,0.31520612]
[1742510594115,0.1780292,84124.0,84123.0,0.37250612]
[1742510595912,0.1780292,84124.0,84123.0,0.31460612]
[1742510596710,0.0591,84124.0,84123.0,0.31460612]
[1742510596923,0.0591,84124.0,84123.0,0.37580612]
[1742510597119,0.3608,84130.0,84129.0,0.1189221]
[1742510597321,0.3608,84147.0,84129.0,0.535181]
[1742510597615,0.0599,84146.0,84140.0,0.1189065]
[1742510597921,0.1189015,84144.0,84140.0,0.2338265]
[1742510598222,0.1189015,84144.0,84140.0,0.4127265]
[1742510598819,0.1787994,84146.0,84140.0,0.42742672]
[1742510599219,0.1188997,84145.0,84140.0,0.42742672]
[1742510599521,0.0024,84141.0,84140.0,0.42742672]
[1742510600117,0.0064,84141.0,84140.0,0.42742672]
[1742510600320,0.0064,84141.0,84140.0,0.67742672]
[1742510600627,0.0599,84146.0,84145.0,0.1188995]
[1742510601015,0.00017828,84149.0,84148.0,0.1188952]
[1742510601214,0.00017828,84149.0,84148.0,0.3482752]
[1742510601712,0.3608,84166.0,84148.0,0.3482752]
[1742510601713,0.118873,84164.0,84156.0,0.1188839]
[1742510601920,0.0611,84163.0,84162.0,0.1188755]
[1742510602129,0.0611,84163.0,84162.0,0.2381755]
[1742510602626,0.0611,84163.0,84162.0,0.25287572]
[1742510603915,0.0651,84163.0,84162.0,0.25287572]
[1742510604523,0.0651,84163.0,84162.0,0.36775572]
[1742510604828,0.0681,84163.0,84162.0,0.36775572]
[1742510606624,0.0001778,84171.0,84170.0,0.1188642]
[1742510607017,0.0001778,84171.0,84170.0,0.1751642]
[1742510607213,0.1190412,84171.0,84170.0,0.18986442]
[1742510607622,0.4798412,84171.0,84170.0,0.01470022]
[1742510607929,0.4848412,84171.0,84170.0,0.01570022]
[1742510608124,0.5467412,84171.0,84170.0,0.01570022]
[1742510608420,0.5467412,84171.0,84170.0,0.001]
[1742510609725,0.6038412,84171.0,84170.0,0.001]
[1742510612832,0.6038412,84171.0,84170.0,0.1763642]
[1742510613132,0.2430412,84171.0,84170.0,0.24714502]
[1742510616221,0.0101778,84171.0,84170.0,0.24714502]
[1742510616436,0.1290405,84171.0,84170.0,0.24714502]
[1742510617735,0.1858405,84171.0,84170.0,0.24714502]
[1742510618436,0.1848405,84171.0,84170.0,0.24614502]
[1742510621936,0.0659778,84171.0,84170.0,0.24614502]
[1742510622430,0.3608,84178.0,84174.0,0.0594287]
[1742510622637,0.0598,84182.0,84181.0,0.1188486]
[1742510622938,0.4699,84188.0,84181.0,0.1188486]
[1742510622939,0.1749402,84187.0,84186.0,0.1188416]
[1742510623128,0.2347402,84187.0,84186.0,0.1188416]
[1742510623826,0.2347402,84187.0,84186.0,0.13372242]
[1742510624537,0.2347402,84187.0,84186.0,0.14524215]
[1742510625638,0.2357402,84187.0,84186.0,0.14524215]
[1742510626230,0.2357402,84187.0,84186.0,0.16037182]
[1742510627537,0.1169,84187.0,84186.0,0.16037182]
[1742510627726,0.0608,84187.0,84186.0,0.16037182]
[1742510627930,0.1796402,84187.0,84186.0,0.16037182]
[1742510628429,0.2365402,84187.0,84186.0,0.16037182]
[1742510629827,0.2355402,84187.0,84186.0,0.16037182]
[1742510630027,0.2365402,84187.0,84186.0,0.16037182]
[1742510630932,0.2365402,84187.0,84186.0,0.1603751]
[1742510633237,0.1177,84187.0,84186.0,0.1603751]
[1742510633428,0.0608,84187.0,84186.0,0.2751751]
[1742510633833,0.001,84187.0,84186.0,0.2751751]
[1742510634036,0.001,84187.0,84186.0,0.3325751]
[1742510634439,0.1191,84187.0,84186.0,0.3325751]
[1742510634633,0.2379402,84187.0,84186.0,0.04150819]
[1742510635637,0.2379402,84187.0,84186.0,0.02640055]
[1742510635935,0.0604,84187.0,84186.0,0.14524215]
[1742510636243,0.001,84187.0,84186.0,0.16038181]
[1742510636435,0.001,84187.0,84186.0,0.57858181]
[1742510637645,0.001,84187.0,84186.0,0.21778181]
[1742510638336,0.0568,84188.0,84187.0,0.1188402]
[1742510638542,0.0568,84188.0,84187.0,0.13397986]
[1742510638735,0.0568,84188.0,84187.0,0.19387986]
[1742510639336,0.0568,84188.0,84187.0,0.20876068]
[1742510639536,0.0578,84188.0,84187.0,0.20876068]
[1742510640640,0.1766387,84188.0,84187.0,0.32356068]
[1742510641047,0.0578,84188.0,84187.0,0.32356068]
[1742510641747,0.1766387,84188.0,84187.0,0.32356068]
[1742510641937,0.1766387,84188.0,84187.0,0.38146068]
[1742510642337,0.2375387,84188.0,84187.0,0.38146068]
[1742510644043,0.2375387,84188.0,84187.0,0.3813871]
[1742510649254,0.2375387,84188.0,84187.0,0.0299469]
[1742510649546,0.1782765,84180.0,84179.0,0.1188501]
[1742510649751,0.1782765,84180.0,84179.0,0.1783501]
[1742510650145,0.1782765,84180.0,84179.0,0.2345501]
[1742510650344,0.1748251,84180.0,84179.0,0.26122132]
[1742510650647,0.1748251,84180.0,84179.0,0.24619219]
[1742510650848,0.5356251,84180.0,84179.0,0.07114209]
[1742510651044,0.5366251,84180.0,84179.0,0.18999349]
[1742510651444,0.5366251,84180.0,84179.0,0.2345514]
[1742510651851,0.5366251,84180.0,84179.0,0.0595]
[1742510652050,0.5366251,84180.0,84179.0,0.1783514]
[1742510652351,0.5366251,84180.0,84179.0,0.2345514]
[1742510652852,0.1188514,84179.0,84178.0,0.00021817]
[1742510653251,0.2339514,84179.0,84178.0,0.00021817]
[1742510653449,0.5241,84179.0,84167.0,4e-05]
[1742510653644,0.1188698,84166.0,84156.0,0.47348167]
[1742510653844,0.2336298,84166.0,84158.0,0.0608]
[1742510654051,0.3501298,84166.0,84163.0,4e-05]
[1742510654954,0.3501298,84166.0,84165.0,0.21675932]
[1742510655162,0.36182445,84166.0,84165.0,0.21675932]
[1742510655448,0.36182445,84166.0,84165.0,0.21475932]
[1742510655656,0.36182445,84166.0,84165.0,0.21575932]
[1742510655847,0.36182445,84166.0,84165.0,0.003]
[1742510656752,0.42022445,84166.0,84165.0,0.003]
[1742510656957,0.4085298,84166.0,84165.0,0.003]
[1742510657454,0.3474298,84166.0,84165.0,0.1218712]
[1742510657647,0.2326698,84166.0,84165.0,0.1218712]
[1742510658651,0.2326698,84166.0,84165.0,0.2394712]
[1742510661757,0.2326698,84166.0,84165.0,0.25468084]
[1742510662159,0.1772698,84166.0,84165.0,0.25468084]
[1742510664565,0.2339698,84166.0,84165.0,0.25468084]
[1742510668764,0.1772698,84166.0,84165.0,0.25468084]
[1742510671970,0.1188698,84166.0,84165.0,0.25468084]
[1742510675262,0.1792698,84166.0,84165.0,0.25468084]
[1742510677175,0.1188698,84166.0,84165.0,0.25468084]
[1742510677387,0.17846851,84174.0,84173.0,0.1188599]
[1742510677875,0.17846851,84174.0,84173.0,0.13406954]
[1742510678072,0.05960711,84174.0,84173.0,0.31166954]
[1742510678778,0.06060711,84174.0,84173.0,0.31166954]
[1742510679869,0.00117781,84174.0,84173.0,0.31166954]
[1742510680478,0.12003631,84174.0,84173.0,0.31166954]
[1742510680678,0.12003631,84174.0,84173.0,0.31266954]
[1742510681064,0.11903631,84174.0,84173.0,0.31266954]
[1742510681269,0.12003631,84174.0,84173.0,0.32545266]
[1742510681672,0.17873631,84174.0,84173.0,0.32545266]
[1742510681880,0.17773631,84174.0,84173.0,0.32545266]
[1742510684074,0.23763631,84174.0,84173.0,0.32545266]
[1742510685685,0.23763631,84174.0,84173.0,0.26495266]
[1742510689186,0.23763631,84174.0,84173.0,0.28018933]
[1742510690678,0.23763631,84174.0,84173.0,0.28018612]
[1742510692790,0.23763631,84174.0,84173.0,0.28020295]
[1742510696788,0.23763631,84174.0,84173.0,0.28020025]
[1742510699490,0.23763631,84174.0,84173.0,0.02899276]
[1742510699691,0.1188726,84164.0,84163.0,0.0573]
[1742510699906,0.1188726,84164.0,84163.0,0.06924965]
[1742510700090,0.1188769,84161.0,84160.0,0.21275932]
[1742510700484,0.2396769,84161.0,84160.0,0.21275932]
[1742510700888,0.25132994,84161.0,84160.0,0.21275932]
[1742510701987,0.25132994,84161.0,84160.0,0.21575932]
[1742510702187,0.25132994,84161.0,84160.0,0.21775932]
[1742510703600,0.25132994,84161.0,84160.0,0.005]
[1742510706094,0.2396769,84161.0,84160.0,0.005]
[1742510706898,0.1797769,84161.0,84160.0,0.1847783]
[1742510707198,0.1797769,84161.0,84160.0,0.2430783]
[1742510707409,0.1797769,84161.0,84160.0,0.2992783]
[1742510707695,0.1797769,84161.0,84160.0,0.1221]
[1742510707696,0.2370769,84161.0,84160.0,0.1221]
[1742510707904,0.2978769,84161.0,84160.0,0.1221]
[1742510712097,0.2978769,84161.0,84160.0,0.13686834]
[1742510712802,0.2370769,84161.0,84160.0,0.13686834]
[1742510714998,0.2370769,84161.0,84160.0,0.1221]
[1742510716004,0.1797769,84161.0,84160.0,0.2409783]
[1742510716205,0.1188769,84161.0,84160.0,0.2409783]
[1742510716394,0.1188769,84161.0,84160.0,0.3027783]
[1742510717003,0.1800769,84161.0,84160.0,0.31749324]
[1742510717596,0.0594378,84162.0,84161.0,0.1188769]
[1742510717803,0.1783098,84164.0,84163.0,0.1783095]
[1742510718398,0.1783068,84167.0,84166.0,0.1188698]
[1742510720508,0.1783068,84167.0,84166.0,0.1198698]
[1742510721205,0.0594347,84167.0,84166.0,0.13460244]
[1742510721412,0.0594291,84175.0,84170.0,0.1188642]
[1742510721718,0.17846911,84174.0,84173.0,0.1188599]
[1742510722413,0.17846911,84174.0,84173.0,0.13039331]
[1742510722606,0.23906911,84174.0,84173.0,0.13039331]
[1742510722808,0.23906911,84174.0,84173.0,0.14512595]
[1742510723105,0.29906911,84174.0,84173.0,0.14512595]
[1742510724303,0.05960721,84174.0,84173.0,0.14512595]
[1742510724707,0.06060721,84174.0,84173.0,0.14512595]
[1742510725107,0.11830721,84174.0,84173.0,0.14512595]
[1742510725498,0.11830721,84174.0,84173.0,0.13039331]
[1742510725709,0.11730721,84174.0,84173.0,0.13139331]
[1742510726112,0.17560721,84174.0,84173.0,0.13139331]
[1742510726514,0.17560721,84174.0,84173.0,0.14611726]
[1742510727008,0.11472,84187.0,84181.0,0.1188486]
[1742510727212,0.1188478,84182.0,84181.0,0.19299575]
[1742510727518,0.0561,84188.0,84182.0,0.0594228]
[1742510727720,0.178268,84186.0,84185.0,0.1188416]
[1742510728305,0.0594222,84186.0,84185.0,0.1188416]
[1742510728516,0.0594222,84186.0,84185.0,0.13356555]
[1742510729010,0.0561,84188.0,84185.0,0.13356555]
[1742510729011,0.1188394,84188.0,84187.0,0.1782587]
[1742510729517,0.0004,84189.0,84188.0,0.1188387]
[1742510729711,0.0004,84189.0,84188.0,0.13356265]
[1742510730107,0.1192373,84189.0,84188.0,0.13356265]
[1742510730520,0.1192373,84189.0,84188.0,0.1188387]
[1742510730909,0.1212373,84189.0,84188.0,0.1188387]
[1742510731110,0.0024,84189.0,84188.0,0.1188387]
[1742510732014,0.0024,84189.0,84188.0,0.1792387]
[1742510732813,0.1817373,84189.0,84188.0,0.1792387]
[1742510733612,0.0024,84189.0,84188.0,0.1792387]
[1742510733924,0.0034,84189.0,84188.0,0.1792387]
[1742510734123,0.0034,84189.0,84188.0,0.2360387]
[1742510734418,0.1222373,84189.0,84188.0,0.2360387]
[1742510734925,0.2418373,84189.0,84188.0,0.2360387]
[1742510735124,0.2418373,84189.0,84188.0,0.3507587]
[1742510735325,0.123,84189.0,84188.0,0.3507587]
[1742510735715,0.2418373,84189.0,84188.0,0.3507587]
[1742510737026,0.123,84189.0,84188.0,0.3507587]
[1742510737333,0.0639,84189.0,84188.0,0.3507587]
[1742510740218,0.1827373,84189.0,84188.0,0.3507587]
[1742510740929,0.0639,84189.0,84188.0,0.3507587]
[1742510743220,0.1827373,84189.0,84188.0,0.3507587]
[1742510743421,0.2393373,84189.0,84188.0,0.3507587]
[1742510743821,0.1205,84189.0,84188.0,0.3507587]
[1742510744330,0.2393373,84189.0,84188.0,0.3507587]
[1742510746429,0.1205,84189.0,84188.0,0.4126587]
[1742510750732,0.2393373,84189.0,84188.0,0.4126587]
[1742510751933,0.2393373,84189.0,84188.0,0.3507587]
[1742510758026,0.1205,84189.0,84188.0,0.3507587]
[1742510758835,0.2393373,84189.0,84188.0,0.3507587]
[1742510759135,0.0639,84189.0,84188.0,0.3507587]
[1742510759525,0.1827373,84189.0,84188.0,0.3507587]
[1742510759726,0.0639,84189.0,84188.0,0.3507587]
[1742510760323,0.1827373,84189.0,84188.0,0.3507587]
[1742510762434,0.2399373,84189.0,84188.0,0.3507587]
[1742510762735,0.2399373,84189.0,84188.0,0.2903587]
[1742510763143,0.2399373,84189.0,84188.0,0.3498587]
[1742510766837,0.1188387,84188.0,84187.0,4e-05]
[1742510767036,0.0594222,84184.0,84183.0,0.2361651]
[1742510767343,0.0594222,84184.0,84183.0,0.2923651]
[1742510768042,0.1771222,84184.0,84183.0,0.2923651]
[1742510768641,0.1781222,84184.0,84183.0,0.2923651]
[1742510770636,0.1791222,84184.0,84183.0,0.2923651]
[1742510772646,0.1791222,84184.0,84183.0,0.1782651]
[1742510773436,0.1791222,84184.0,84183.0,0.2969651]
[1742510776151,0.1791222,84184.0,84183.0,0.31180025]
[1742510778038,0.1791222,84184.0,84183.0,0.32662208]
[1742510778239,0.1791222,84184.0,84183.0,0.32662976]
[1742510780250,0.1791222,84184.0,84183.0,0.32658972]
[1742510780452,0.1791222,84184.0,84183.0,0.38368972]
[1742510783757,0.1791222,84184.0,84183.0,0.36890025]
[1742510783954,0.002,84184.0,84183.0,0.36890025]
[1742510784149,0.0004,84189.0,84188.0,0.1188387]
[1742510784350,0.0004,84189.0,84188.0,0.36597561]
[1742510785060,0.0004,84189.0,84188.0,0.3512187]
[1742510785363,0.0024,84189.0,84188.0,0.3512187]
[1742510785664,0.0024,84189.0,84188.0,0.36597507]
[1742510786166,0.0024,84189.0,84188.0,0.3512187]
[1742510789454,0.0024,84189.0,84188.0,0.36594224]
[1742510789963,0.0024,84189.0,84188.0,0.365941]
[1742510791153,0.06,84198.0,84197.0,0.118826]
[1742510791358,0.06,84198.0,84197.0,0.42267677]
[1742510791960,0.06,84198.0,84197.0,0.43762488]
[1742510792163,0.06,84198.0,84197.0,0.42279299]
[1742510792563,0.1173,84198.0,84197.0,0.43761569]
[1742510792862,0.1183,84198.0,84197.0,0.43761569]
[1742510793064,0.1183,84198.0,84197.0,0.42279299]
[1742510793367,0.1183,84198.0,84197.0,0.43474287]
[1742510794970,0.1173,84198.0,84197.0,0.43474287]
[1742510795957,0.1173,84198.0,84197.0,0.44358965]
[1742510797072,0.2361246,84198.0,84197.0,0.44358965]
[1742510797257,0.1173,84198.0,84197.0,0.45846124]
[1742510798264,0.1173,84198.0,84197.0,0.44358965]
[1742510799377,0.1173,84198.0,84197.0,0.45855213]
[1742510799561,0.1173,84198.0,84197.0,0.44358965]
[1742510799956,0.1173,84198.0,84197.0,0.45855217]
[1742510800564,0.1173,84198.0,84197.0,0.44358965]
[1742510801160,0.1173,84198.0,84197.0,0.45851261]
[1742510801361,0.1173,84198.0,84197.0,0.45848306]
[1742510801769,0.1173,84198.0,84197.0,0.44358965]
[1742510802674,0.1173,84198.0,84197.0,0.45849055]
[1742510803275,0.1173,84198.0,84197.0,0.45849082]
[1742510803878,0.1173,84198.0,84197.0,0.44358965]
[1742510804269,0.1173,84198.0,84197.0,0.45850624]
[1742510804577,0.1173,84198.0,84197.0,0.44358965]
[1742510805168,0.1173,84198.0,84197.0,0.45850051]
[1742510805369,0.1173,84198.0,84197.0,0.44358965]
[1742510805678,0.1173,84198.0,84197.0,0.4585069]
[1742510806177,0.1173,84198.0,84197.0,0.45850701]
[1742510806479,0.1173,84198.0,84197.0,0.44358965]
[1742510807281,0.1173,84198.0,84197.0,0.45852325]
[1742510807776,0.1173,84198.0,84197.0,0.45850457]
[1742510809883,0.1173,84198.0,84197.0,0.45852304]
[1742510811279,0.2361246,84198.0,84197.0,0.40102304]
[1742510811680,0.2361246,84198.0,84197.0,0.40096319]
[1742510813683,0.2361246,84198.0,84197.0,0.40090675]
[1742510814677,0.27903,84231.0,84197.0,0.43208075]
[1742510814876,0.74213113,84336.0,84318.0,0.3608]
[1742510815082,0.74213113,84336.0,84319.0,0.01482224]
[1742510815083,0.1184,84335.0,84319.0,0.01482224]
[1742510815384,4e-05,84321.0,84319.0,0.37562699]
[1742510815595,4e-05,84321.0,84319.0,0.37580487]
[1742510815770,4e-05,84321.0,84318.0,0.3608]
[1742510815974,0.05784,84321.0,84318.0,0.3608]
[1742510816171,0.05784,84321.0,84318.0,0.2695]
[1742510816381,0.56864,84321.0,84304.0,0.3608]
[1742510816578,0.0593264,84320.0,84304.0,0.3608]
[1742510816773,0.05784,84321.0,84304.0,0.3608]
[1742510816974,0.00017689,84320.0,84314.0,0.0593299]
[1742510817173,0.13364,84319.0,84311.0,0.3604]
[1742510817386,0.00017689,84320.0,84319.0,0.1182541]
[1742510817589,0.13389689,84320.0,84319.0,0.1182541]
[1742510817784,0.00017689,84320.0,84319.0,0.1182541]
[1742510818082,0.0593003,84358.0,84319.0,0.1182541]
[1742510818083,4e-05,84321.0,84320.0,0.1186527]
[1742510818288,4e-05,84324.0,84320.0,0.1186527]
[1742510818289,4e-05,84328.0,84327.0,0.1186429]
[1742510818484,4e-05,84328.0,84327.0,0.4794429]
[1742510818879,0.0593101,84343.0,84338.0,0.1182267]
[1742510819075,0.1779304,84343.0,84342.0,0.3608]
[1742510819386,0.0593101,84343.0,84342.0,0.3608]
[1742510819584,0.0593101,84343.0,84335.0,0.1186309]
[1742510819585,0.1186344,84333.0,84332.0,0.00017788]
[1742510819783,0.15,84333.0,84313.0,0.3608]
[1742510819984,0.7216,84314.0,84282.0,0.0593527]
[1742510820186,0.7216,84314.0,84297.0,0.1186851]
[1742510820187,0.3608,84298.0,84297.0,0.1186851]
[1742510820493,0.7216,84298.0,84297.0,0.1186851]
[1742510821385,0.3608,84298.0,84297.0,0.1186851]
[1742510821587,0.1161,84301.0,84300.0,0.1186809]
[1742510821792,0.11614,84301.0,84300.0,0.1186809]
[1742510822182,0.05634,84301.0,84300.0,0.1186809]
[1742510822792,0.3608,84305.0,84304.0,0.1186752]
[1742510823086,0.36084,84305.0,84304.0,0.1186752]
[1742510823285,0.36084,84305.0,84291.0,0.1186926]
[1742510823493,0.3608,84298.0,84289.0,0.00017788]
[1742510823682,0.4794949,84290.0,84289.0,0.00017788]
[1742510824790,0.3608,84290.0,84289.0,0.11887418]
[1742510825089,0.4794949,84290.0,84289.0,0.11887418]
[1742510825592,0.3608,84290.0,84289.0,0.11887418]
[1742510825794,0.3608,84290.0,84289.0,0.17607418]
[1742510827096,0.3608,84290.0,84289.0,0.17807418]
[1742510827298,0.3608,84290.0,84289.0,0.17707418]
[1742510827599,0.3608,84290.0,84289.0,0.17907418]
[1742510827797,0.3608,84290.0,84289.0,0.18207418]
[1742510828205,0.14710154,84290.0,84289.0,0.18407418]
[1742510828798,0.14710154,84290.0,84289.0,0.18207418]
[1742510830099,0.14710154,84290.0,84289.0,0.17807418]
[1742510830598,0.05864,84297.0,84296.0,0.1186865]
[1742510831386,0.1773251,84297.0,84296.0,0.1186865]
[1742510832185,0.1773251,84297.0,84296.0,0.1216865]
[1742510832391,0.1773251,84297.0,84296.0,0.1226865]
[1742510833195,0.1772851,84297.0,84296.0,0.1226865]
[1742510833390,0.1799251,84297.0,84296.0,0.1226865]
[1742510833601,0.1799251,84297.0,84296.0,0.1228465]
[1742510833791,0.1799251,84297.0,84296.0,0.1218465]
[1742510834897,0.2397251,84297.0,84296.0,0.00116]
[1742510835096,0.1186949,84290.0,84289.0,0.00017788]
[1742510835293,0.1187161,84275.0,84274.0,0.1780167]
[1742510835498,0.4795161,84275.0,84274.0,0.1780167]
[1742510836000,0.4795161,84275.0,84274.0,0.2967334]
[1742510836502,0.3608,84275.0,84274.0,0.2967334]
[1742510836892,0.4795161,84275.0,84274.0,0.2967334]
[1742510837093,0.5331161,84275.0,84274.0,0.2967334]
[1742510837298,0.5331161,84275.0,84274.0,0.3017334]
[1742510837797,0.8939161,84275.0,84274.0,0.009]
[1742510838711,0.7752,84275.0,84274.0,0.1277175]
[1742510839092,0.0536,84275.0,84274.0,0.2430175]
[1742510839495,0.3608,84282.0,84281.0,0.1187076]
[1742510840495,0.3608,84282.0,84276.0,0.1907966]
[1742510840496,0.1187161,84275.0,84274.0,0.009]
[1742510840696,0.1187189,84273.0,84262.0,0.0577]
[1742510840900,0.1187273,84267.0,84262.0,0.1764334]
[1742510841094,0.4795273,84267.0,84265.0,0.1187291]
[1742510841294,0.4795273,84267.0,84266.0,0.11890669]
[1742510841708,0.5409273,84267.0,84266.0,0.11890669]
[1742510842904,0.5419273,84267.0,84266.0,0.12390669]
[1742510843900,0.5419273,84267.0,84266.0,0.00517799]